[Event "2nd Bundesliga Nord 2024-25"]
[Site "Germany"]
[Date "2024.12.01"]
[Round "3.7"]
[White "Berg, Michael"]
[Black "Holtel, Jasper"]
[Result "1-0"]
[Annotator "TA"]
[ECO "D83"]
[WhiteElo "2252"]
[BlackElo "2344"]
[PlyCount "103"]
[EventDate "2024.11.29"]
[EventType "team-tourn"]
[EventCountry "GER"]
[SourceTitle "playchess.com"]
[Source "ChessBase"]
[SourceQuality "1"]
[TimeControl "40/5400+30:1800+30"]

{[%evp 10,103,22,13,13,10,23,20,6,0,0,-2,-25,-15,-31,-34,-10,-41,-32,-54,-40,-62,7,-5,-5,-5,-4,-8,-14,0,55,25,17,15,9,19,17,19,138,146,141,145,207,133,263,262,252,250,245,267,271,262,245,235,235,235,287,252,232,229,229,233,228,235,243,220,244,225,251,225,219,221,219,216,205,215,215,213,279,283,376,385,433,424,500,499,455,471,7328,6519,6407,6239,29974,29975,29975,29976]} 1. d4 {[%emt 0:00:03]} Nf6 {[%emt 0:00:16]} 2. c4 {[%emt 0:00:07]} g6 {[%emt 0:00:10]} 3. Nc3 {[%emt 0:00:11]} d5 {[%emt 0:00:07]} 4. Bf4 {[%emt 0:00:17]} Bg7 {[%emt 0:00:16]} 5. e3 {[%emt 0:00:13]} O-O {[%emt 0:00:22]} 6. Rc1 {[%emt 0:00:06]} Be6 {[%emt 0:03:33]} 7. c5 {[%emt 0:00:50]} c6 {[%emt 0:01:06]} 8. Bd3 {[%emt 0:02:07]} Bg4 {[%emt 0:08:22] The position is equal.} 9. Qc2 {[%emt 0:01:48]} Nfd7 {[%emt 0:03:37]} 10. Bxb8 {[%emt 0:22:14]} Nxb8 {[%emt 0:01:51]} 11. h3 {[%emt 0:01:02]} Bc8 {[%emt 0:00:08]} 12. f4 {[%emt 0:07:26]} b6 {[%emt 0:07:37]} 13. Na4 {[%emt 0:07:06] [#]} e5 $1 {[%emt 0:01:52]} 14. dxe5 {[%emt 0:09:15]} (14. fxe5 Bh6) 14... f6 {[%emt 0:28:25]} 15. exf6 {[%emt 0:03:25]} Bxf6 {[%emt 0:02:13]} ({Black should try} 15... Qxf6 $15 16. cxb6 axb6) 16. Ne2 {[%emt 0:06:03]} b5 {[%emt 0:05:46]} 17. Nac3 {[%emt 0:01:51]} Na6 {[%emt 0:01:48]} 18. O-O {[%emt 0:08:14][%cal Od3g6]} Nxc5 {[%emt 0:08:57]} 19. Bxg6 {[%emt 0:03:12]} Qe7 {[%emt 0:05:23]} (19... hxg6 $11 20. Qxg6+ Kh8) 20. Nd1 {[%emt 0:02:40]} hxg6 {[%emt 0:06:04]} 21. Qxc5 {[%emt 0:02:25]} Qxc5 {[%emt 0:00:09]} 22. Rxc5 {[%emt 0:00:01]} Bd7 {[%emt 0:00:12]} 23. Nd4 {[%emt 0:03:49]} Rae8 {[%emt 0:03:24] Black is on the road to losing.} (23... Bxd4 $11 {remains equal.} 24. exd4 Rae8) 24. Nxc6 $16 {[%emt 0:05:17]} Bxc6 {[%emt 0:04:57]} 25. Rxc6 {[%emt 0:00:20]} Kg7 {[%emt 0:00:55]} (25... d4 $16) 26. Rd6 {[%emt 0:05:21]} Rd8 {[%emt 0:00:27]} (26... d4 $16 {is a better defense.}) 27. Rxd8 $18 {[%emt 0:01:15]} Rxd8 {[%emt 0:00:07][%mdl 4096] Endgame. KRB-KRN} 28. Rf2 {[%emt 0:02:20]} Kf7 {[%emt 0:02:39]} 29. Rd2 {[%emt 0:00:26]} Ke6 {[%emt 0:00:28]} 30. Kf2 {[%emt 0:00:55]} Rc8 {[%emt 0:02:14]} 31. Ke2 {[%emt 0:00:40]} Rc1 {[%emt 0:00:09]} 32. a3 {[%emt 0:01:28]} Rb1 {[%emt 0:01:19]} 33. Kd3 {[%emt 0:00:36]} a5 {[%emt 0:00:27]} 34. Kc2 {[%emt 0:00:36]} Ra1 {[%emt 0:00:08]} 35. Nc3 {[%emt 0:01:06]} Bxc3 {[%emt 0:00:17]} 36. Kxc3 {[%emt 0:00:03] KR-KR} (36. bxc3 Ra2+ 37. Kc1 Rxa3 $11) 36... Re1 {[%emt 0:01:00]} 37. Kd3 {[%emt 0:00:34]} Kd6 {[%emt 0:00:21]} 38. Rf2 {[%emt 0:01:47]} Rd1+ {[%emt 0:00:49]} 39. Kc2 {[%emt 0:00:19]} Re1 {[%emt 0:00:16]} 40. Kd2 {[%emt 0:00:45]} Rb1 {[%emt 0:00:08] [#]} 41. Kc3 {[%emt 0:31:06]} Rc1+ {[%emt 0:07:05]} 42. Rc2 {[%emt 0:00:00]} Re1 {[%emt 0:03:01]} 43. Kd3 {[%emt 0:00:00]} Rg1 {[%emt 0:04:15]} 44. e4 {[%emt 0:00:00][%cal Be3e4,Be4e5][%mdl 32]} Rd1+ {[%emt 0:02:58]} 45. Ke2 {[%emt 0:00:00]} Rd4 {[%emt 0:00:07]} 46. e5+ {[%emt 0:00:00]} Kd7 {[%emt 0:00:47]} 47. Ke3 {[%emt 0:00:00]} Re4+ {[%emt 0:00:28]} 48. Kf3 {[%emt 0:00:00]} Rc4 {[%emt 0:00:07]} (48... Rd4 $142 49. Rc5 Rd3+ 50. Kg4 (50. Ke2 Rb3 $18) 50... Rd2) 49. Rxc4 {[%emt 0:00:00]} dxc4 {[%emt 0:00:07]} 50. Ke3 {[%emt 0:00:00]} b4 {[%emt 0:00:54]} 51. axb4 {[%emt 0:00:00]} axb4 {[%emt 0:00:08]} 52. Kd4 {[%emt 0:00:00] Weighted Error Value: White=0.07 (flawless) /Black=0.42.  Mistake:       	---       	Black=6      Inaccurate:     	White=3     	Black=2      OK:         	White=23    	Black=19     Best:        	White=3     	Black=1} 1-0

[Event "2nd Bundesliga Nord 2024-25"]
[Site "Germany"]
[Date "2024.12.01"]
[Round "3.8"]
[White "Haug, Havard"]
[Black "Wickenfeld, Stefan"]
[Result "1-0"]
[Annotator "TA"]
[ECO "B01"]
[WhiteElo "2352"]
[BlackElo "2188"]
[PlyCount "71"]
[EventDate "2024.11.29"]
[EventType "team-tourn"]
[EventCountry "GER"]
[SourceTitle "playchess.com"]
[Source "ChessBase"]
[SourceQuality "1"]
[TimeControl "40/5400+30:1800+30"]

{[%evp 13,71,20,39,29,61,15,11,7,38,22,28,14,82,84,134,123,131,118,132,48,57,39,131,69,237,238,248,226,199,207,195,167,164,191,170,169,217,249,452,446,586,405,589,586,585,572,613,606,611,611,595,588,664,695,695,695,681,671,650,629]} 1. e4 {[%emt 0:00:04]} d5 {[%emt 0:05:35]} 2. exd5 {[%emt 0:00:56]} Qxd5 {[%emt 0:00:08]} 3. Nc3 {[%emt 0:00:11]} Qa5 {[%emt 0:00:35]} 4. Nf3 {[%emt 0:00:52]} Bg4 {[%emt 0:00:53]} 5. Be2 {[%emt 0:01:58]} Nf6 {[%emt 0:01:15]} 6. O-O {[%emt 0:00:44]} e6 {[%emt 0:00:07]} 7. d4 {[%emt 0:01:20]} Be7 {[%emt 0:03:14]} 8. h3 {[%emt 0:01:39]} Bh5 {[%emt 0:00:47]} 9. Ne5 {[%emt 0:00:50]} (9. g4 $14 {was preferable.}) 9... Bxe2 $11 {[%emt 0:00:50]} 10. Qxe2 {[%emt 0:00:08][%cal Od4d5]} Nbd7 {[%emt 0:01:03]} 11. Nxd7 {[%emt 0:09:50]} Nxd7 {[%emt 0:00:52]} 12. d5 {[%emt 0:00:54]} Nf8 {[%emt 0:04:21]} (12... e5 $1 $11) 13. Qf3 $36 {[%emt 0:07:56][%mdl 2048] White is on the roll.} e5 {[%emt 0:04:05] [#]} (13... Bd6 $142) 14. d6 $1 $16 {[%emt 0:01:34][%mdl 512]} cxd6 {[%emt 0:00:51]} 15. Qxb7 {[%emt 0:00:12]} Rd8 {[%emt 0:00:09]} 16. Nd5 {[%emt 0:11:48]} ({Better is} 16. b4 $16 Qb6 17. Qxb6 axb6 18. Nd5) 16... Rd7 $14 {[%emt 0:01:10]} 17. Qa8+ {[%emt 0:01:10]} Bd8 {[%emt 0:05:36]} ({Black should try} 17... Qd8 $14 18. Qc6 Ne6) 18. Be3 {[%emt 0:03:20] White is more active.} (18. Rd1 $16) 18... Ne6 $2 {[%emt 0:01:50] [#]} (18... Qa6 $14) 19. Qc6 $1 $18 {[%emt 0:10:02]} Nc7 {[%emt 0:05:26]} 20. Rfd1 {[%emt 0:01:43][%cal Bf1d1,Bd1d5,Bd5d6,Bd6a6,Ba6a7][%mdl 32]} Nxd5 {[%emt 0:01:23]} 21. Rxd5 {[%emt 0:00:25]} Qc7 {[%emt 0:00:19]} 22. Qxc7 {[%emt 0:07:17]} Rxc7 {[%emt 0:00:14]} 23. Rxd6 {[%emt 0:00:22]} Rxc2 {[%emt 0:00:15]} 24. b4 {[%emt 0:00:10]} (24. Bxa7 Rxb2 25. a4 Bc7 $16) 24... Be7 {[%emt 0:11:13]} (24... O-O $142 25. Ra6 (25. Bxa7 Be7 $18) 25... f5 26. Rxa7 Bf6) 25. Ra6 {[%emt 0:00:14]} Bxb4 $2 {[%emt 0:04:58] [#]} (25... O-O 26. b5 (26. Rxa7 Bxb4 27. a4 Bd2 $16) (26. a3 f5 $18) 26... f5 27. Rxa7 f4) 26. Rb1 $1 {[%emt 0:01:05]} ({Weaker is} 26. Rxa7 O-O $16) 26... Be7 {[%emt 0:00:06]} 27. Rxa7 {[%emt 0:00:32]} Bd8 {[%emt 0:01:41]} (27... Rc8 {keeps fighting.} 28. Rbb7 Bf6 29. Rxf7 Rd8) 28. Rb8 {[%emt 0:01:35]} O-O {[%emt 0:00:14]} 29. Raa8 {[%emt 0:00:16]} Be7 {[%emt 0:00:16]} 30. a4 {[%emt 0:00:06][%cal Ba2a4,Ba4a5,Ba5a6,Ba6a7][%mdl 32]} f5 {[%emt 0:00:47][%cal Bf7f5,Bf5f4][%mdl 32]} 31. a5 {[%emt 0:00:54]} Kf7 {[%emt 0:01:08]} 32. a6 {[%emt 0:01:05]} f4 {[%emt 0:03:06]} 33. Rxf8+ {[%emt 0:00:40]} Bxf8 {[%emt 0:00:07] [#]} 34. a7 $1 {[%emt 0:00:08][%cal Oa8f8] and Rxf8+! should not be overlooked} Ra2 {[%emt 0:00:23]} 35. Bb6 {[%emt 0:00:04]} Ra6 {[%emt 0:00:17]} 36. Rb8 {[%emt 0:00:12]} 1-0

[Event "2nd Bundesliga Nord 2024-25"]
[Site "Germany"]
[Date "2024.12.01"]
[Round "3.9"]
[White "Lutz, Christopher"]
[Black "Ernst, Sipke"]
[Result "1/2-1/2"]
[Annotator "RC"]
[ECO "C77"]
[WhiteElo "2524"]
[BlackElo "2519"]
[PlyCount "39"]
[EventDate "2024.11.29"]
[EventType "team-tourn"]
[EventCountry "GER"]
[SourceTitle "playchess.com"]
[Source "ChessBase"]
[SourceQuality "1"]
[TimeControl "40/5400+30:1800+30"]

1. e4 {[%emt 0:00:07]} e5 {[%emt 0:00:03]} 2. Nf3 {[%emt 0:00:10]} Nc6 {[%emt 0:00:04]} 3. Bb5 {[%emt 0:00:07]} a6 {[%emt 0:00:02]} 4. Ba4 {[%emt 0:00:09]} Nf6 {[%emt 0:00:02]} 5. d3 {[%emt 0:00:17]} d6 {[%emt 0:00:08]} 6. c3 {[%emt 0:00:39]} g6 {[%emt 0:00:09]} 7. Bg5 {[%emt 0:00:49]} h6 {[%emt 0:01:13]} 8. Bh4 {[%emt 0:06:55]} Bd7 {[%emt 0:01:20]} 9. Nbd2 {[%emt 0:02:00]} Be7 {[%emt 0:00:26]} 10. Nf1 {[%emt 0:12:22]} O-O {[%emt 0:12:30]} 11. Ne3 {[%emt 0:00:34]} Ng4 {[%emt 0:09:06]} 12. Bxe7 {[%emt 0:04:06]} Nxe7 {[%emt 0:01:04]} 13. Nxg4 {[%emt 0:02:14]} Bxg4 {[%emt 0:00:05]} 14. h3 {[%emt 0:00:15]} Bd7 {[%emt 0:04:08]} 15. Bb3 {[%emt 0:02:38]} Kg7 {[%emt 0:04:12]} 16. Qe2 {[%emt 0:21:14]} a5 {[%emt 0:03:40]} 17. d4 {[%emt 0:02:22]} f6 {[%emt 0:01:32]} 18. Rd1 {[%emt 0:04:48]} Qe8 {[%emt 0:05:49]} 19. a3 {[%emt 0:03:46]} g5 {[%emt 0:08:44]} 20. Qe3 {[%emt 0:04:33]} 1/2-1/2

[Event "2nd Bundesliga Nord 2024-25"]
[Site "Germany"]
[Date "2024.12.01"]
[Round "3.10"]
[White "Peyrer, Konstantin"]
[Black "Rotstein, Arkadij"]
[Result "1-0"]
[Annotator "TA"]
[ECO "D35"]
[WhiteElo "2437"]
[BlackElo "2432"]
[PlyCount "129"]
[EventDate "2024.11.29"]
[EventType "team-tourn"]
[EventCountry "GER"]
[SourceTitle "playchess.com"]
[Source "ChessBase"]
[SourceQuality "1"]
[TimeControl "40/5400+30:1800+30"]

{[%evp 44,129,9,0,10,-13,18,-1,16,36,33,0,0,-6,35,16,101,42,48,52,67,41,106,102,143,147,179,192,210,103,87,92,242,229,224,174,179,174,168,173,169,181,162,151,373,90,295,277,244,0,0,0,427,412,417,449,446,427,374,429,412,481,508,489,542,538,552,541,520,500,444,374,625,594,29975,29976,29976,29975,29976,29974,29974,29975,29978,29979,29979,29980,29980,29976]} 1. d4 {[%emt 0:00:08]} Nf6 {[%emt 0:00:10]} 2. c4 {[%emt 0:00:07]} e6 {[%emt 0:00:05]} 3. Nc3 {[%emt 0:00:15]} d5 {[%emt 0:00:21]} 4. cxd5 {[%emt 0:00:26]} exd5 {[%emt 0:00:08]} 5. Bg5 {[%emt 0:00:05]} Be7 {[%emt 0:00:21]} 6. e3 {[%emt 0:00:07]} O-O {[%emt 0:00:23]} 7. Bd3 {[%emt 0:00:09]} Nbd7 {[%emt 0:00:48]} 8. Nf3 {[%emt 0:01:10]} Re8 {[%emt 0:00:52]} 9. O-O {[%emt 0:00:59]} Nf8 {[%emt 0:00:34]} 10. Ne5 {[%emt 0:09:25]} c6 {[%emt 0:18:34]} 11. f4 {[%emt 0:06:51]} N6d7 {[%emt 0:05:26]} 12. Qh5 {[%emt 0:07:07]} g6 {[%emt 0:09:09]} 13. Bxe7 {[%emt 0:01:03]} Qxe7 {[%emt 0:00:12]} 14. Qf3 {[%emt 0:00:28]} f6 {[%emt 0:11:47]} 15. Nxd7 {[%emt 0:01:03]} Bxd7 {[%emt 0:05:00]} 16. Rae1 {[%emt 0:04:09]} f5 {[%emt 0:01:00]} 17. Nb1 {[%emt 0:05:59]} Qb4 {[%emt 0:05:20]} 18. Qf2 {[%emt 0:00:08]} Re7 {[%emt 0:01:15]} 19. a3 {[%emt 0:03:55]} Qb3 {[%emt 0:03:33]} 20. Qd2 {[%emt 0:00:24]} Rae8 {[%emt 0:00:52]} 21. Nc3 {[%emt 0:00:12]} Ne6 {[%emt 0:05:41]} 22. Bb1 {[%emt 0:02:24]} Qb6 {[%emt 0:03:00]} 23. Ba2 {[%emt 0:01:14]} Kh8 {[%emt 0:01:44]} 24. b4 {[%emt 0:08:07]} a5 {[%emt 0:04:02]} 25. b5 {[%emt 0:01:49]} Qc7 {[%emt 0:05:53]} 26. bxc6 {[%emt 0:01:19]} bxc6 {[%emt 0:00:21]} 27. Na4 {[%emt 0:03:42]} (27. Bxd5 $5 cxd5 28. Nxd5 $16) 27... Qd6 {[%emt 0:00:27]} 28. Qc3 {[%emt 0:01:08]} Nc7 {[%emt 0:04:15]} 29. Nc5 {[%emt 0:03:19]} (29. Qxa5 Qxa3 30. Qxc7 Qxa4 $11) 29... Nb5 {[%emt 0:01:51]} (29... a4 $11) 30. Qc1 {[%emt 0:00:27]} (30. Qxa5 $16 {Black must now prevent a4.} Rxe3 31. Rxe3 Rxe3 32. a4) 30... a4 {[%emt 0:01:34]} 31. Bb1 {[%emt 0:00:29]} (31. Nxa4 Qxa3 32. Qxa3 Nxa3 $15) 31... Qf6 {[%emt 0:01:49]} 32. Bd3 {[%emt 0:04:40]} Nc7 {[%emt 0:04:15]} (32... Nxd4 $2 33. Qa1 $18 (33. exd4 $2 Qxd4+ 34. Kh1 Rxe1 $19) (33. Qc3 $2 Nf3+ 34. gxf3 Qxc3 $19)) (32... Bc8 $14) 33. Nxa4 $16 {[%emt 0:03:23]} Ne6 {[%emt 0:01:25] [#]} 34. Nb6 $1 {[%emt 0:00:23]} Nf8 {[%emt 0:03:35]} (34... Nxd4 $2 35. Nxd7 Rxd7 36. exd4 $18) 35. a4 {[%emt 0:02:48]} Qd6 {[%emt 0:00:02]} 36. Qc5 {[%emt 0:10:20]} (36. Qc3 $18 {has better winning chances.}) 36... Qxc5 $16 {[%emt 0:02:08]} 37. dxc5 {[%emt 0:00:12]} Rxe3 {[%emt 0:00:16]} (37... Ne6 $16) 38. Rxe3 $18 {[%emt 0:00:05]} Rxe3 {[%emt 0:00:03]} 39. Rd1 {[%emt 0:00:10]} Re7 {[%emt 0:01:12]} 40. a5 {[%emt 0:01:06]} Be6 {[%emt 0:00:32]} 41. a6 {[%emt 0:32:53]} Ra7 {[%emt 0:09:08]} 42. Rb1 {[%emt 0:00:00]} Kg7 {[%emt 0:05:59]} 43. Na4 {[%emt 0:00:00]} Kf6 $2 {[%emt 0:02:54]} (43... Bc8 $16 {is a better defense.}) 44. Kf2 $2 {[%emt 0:00:00]} (44. Rb6 $18 {and the rest is easy.}) 44... Ke7 $2 {[%emt 0:02:58]} (44... Bc8 $16) 45. Rb8 $18 {[%emt 0:00:00]} Nd7 {[%emt 0:01:37]} 46. Rh8 $2 {[%emt 0:00:00]} ({Better is} 46. Rb6 $18) 46... Nf8 $11 {[%emt 0:00:28]} 47. Nb6 {[%emt 0:00:00]} d4 $2 {[%emt 0:02:29][%mdl 8192] [#]} (47... Ke8 $11) 48. Bc4 $1 $18 {[%emt 0:00:00]} Bxc4 {[%emt 0:04:20]} 49. Nc8+ {[%emt 0:00:00]} Kf7 {[%emt 0:00:04]} 50. Nxa7 {[%emt 0:00:00]} Bxa6 {[%emt 0:00:34]} ({Avoid the trap} 50... Kg7 $2 51. Rxf8 Kxf8 52. Nb5 (52. Nxc6 Bxa6 53. Nxd4 Bb7 $18)) 51. Nxc6 {[%emt 0:00:00]} d3 {[%emt 0:00:48]} 52. Ke3 {[%emt 0:00:00]} Kg7 {[%emt 0:00:17]} 53. Rxf8 {[%emt 0:00:00]} Kxf8 {[%emt 0:00:02]} 54. Nb4 {[%emt 0:00:00]} Bb5 {[%emt 0:01:34]} 55. Nxd3 {[%emt 0:00:00]} Ke7 {[%emt 0:00:07]} 56. Kd4 {[%emt 0:00:00]} Ke6 {[%emt 0:00:39]} 57. Nb4 {[%emt 0:00:00]} h6 $2 {[%emt 0:00:58]} (57... Bf1 58. g3 Be2) 58. h4 $18 {[%emt 0:00:00]} g5 {[%emt 0:02:15]} 59. fxg5 {[%emt 0:00:00]} hxg5 {[%emt 0:00:03]} 60. hxg5 {[%emt 0:00:00]} f4 {[%emt 0:00:08]} 61. Ke4 {[%emt 0:00:00]} Bf1 {[%emt 0:00:10]} 62. Kf3 {[%emt 0:00:00]} Kf5 {[%emt 0:01:38]} 63. c6 {[%emt 0:00:00]} Bb5 {[%emt 0:01:10]} 64. c7 {[%emt 0:00:00]} Bd7 {[%emt 0:00:03]} 65. Nd5 {[%emt 0:00:00]} 1-0

[Event "2nd Bundesliga Nord 2024-25"]
[Site "Germany"]
[Date "2024.12.01"]
[Round "3.11"]
[White "Suvorov, Alexander"]
[Black "Woelk, Tom-Frederic"]
[Result "1/2-1/2"]
[Annotator "TA"]
[ECO "D03"]
[WhiteElo "2356"]
[BlackElo "2378"]
[PlyCount "48"]
[EventDate "2024.11.29"]
[EventType "team-tourn"]
[EventCountry "GER"]
[SourceTitle "playchess.com"]
[Source "ChessBase"]
[SourceQuality "1"]
[TimeControl "40/5400+30:1800+30"]

{[%evp 10,48,0,0,28,27,41,9,11,10,23,31,40,14,50,38,42,37,47,47,58,23,49,33,46,39,54,21,52,8,11,-33,2,0,0,2,29,33,27,31,33]} 1. Nf3 {[%emt 0:00:09]} d5 {[%emt 0:00:25]} 2. d4 {[%emt 0:00:30]} Nf6 {[%emt 0:00:08]} 3. c3 {[%emt 0:00:20]} e6 {[%emt 0:01:37]} 4. Bg5 {[%emt 0:00:36]} c5 {[%emt 0:03:23]} 5. e3 {[%emt 0:02:31]} Nbd7 {[%emt 0:08:42]} 6. Nbd2 {[%emt 0:04:35]} Qb6 {[%emt 0:05:20]} 7. Qc2 {[%emt 0:03:49]} Bd6 {[%emt 0:00:32]} 8. Bd3 {[%emt 0:04:32]} c4 {[%emt 0:07:23] The position is equal.} 9. Be2 {[%emt 0:03:00]} Qc6 {[%emt 0:00:37]} 10. a4 {[%emt 0:17:24][%cal Ba2a4,Ba4a5][%mdl 32]} O-O {[%emt 0:14:26]} 11. O-O {[%emt 0:03:25]} a6 {[%emt 0:10:52]} 12. Bf4 {[%emt 0:16:00]} Bxf4 {[%emt 0:09:00]} 13. exf4 {[%emt 0:00:03]} b5 {[%emt 0:00:16]} 14. Ne5 {[%emt 0:01:58][%cal Bf3e5,Be5g4,Bg4e3,Be3f5][%mdl 32]} Qb7 {[%emt 0:03:46]} 15. a5 {[%emt 0:17:55]} Ne8 {[%emt 0:02:32]} 16. Bf3 {[%emt 0:01:40]} f6 {[%emt 0:03:31]} 17. Ng4 {[%emt 0:00:47]} Nd6 {[%emt 0:05:31]} 18. Rfe1 {[%emt 0:00:31]} Re8 {[%emt 0:00:23]} 19. Nf1 {[%emt 0:01:23]} Nf8 {[%emt 0:02:26]} 20. Ng3 {[%emt 0:01:09][%cal Of4f5]} Bd7 {[%emt 0:01:26] [#]} 21. f5 $1 {[%emt 0:05:12]} exf5 {[%emt 0:05:58]} 22. Ne3 {[%emt 0:00:12]} Be6 {[%emt 0:02:15] ...f4 is the strong threat.} (22... Rxe3 $5 23. fxe3 (23. Rxe3 $2 {too greedy.} f4 $19) 23... Be6 $11) 23. Ngxf5 {[%emt 0:01:01]} Nxf5 {[%emt 0:00:58]} 24. Nxf5 {[%emt 0:00:08]} Qd7 {[%emt 0:00:12] Repels Nd6.   Weighted Error Value: White=0.15 (very precise) /Black=0.13 (very precise) .  Inaccurate:     	White=6     	Black=5      OK:         	White=7     	Black=4      Best:        	---       	Black=1} 1/2-1/2

[Event "2nd Bundesliga Nord 2024-25"]
[Site "Germany"]
[Date "2024.12.01"]
[Round "3.12"]
[White "Colpe, Malte"]
[Black "Suvorov, Luca"]
[Result "1/2-1/2"]
[Annotator "TA"]
[ECO "D31"]
[WhiteElo "2371"]
[BlackElo "2388"]
[PlyCount "37"]
[EventDate "2024.11.29"]
[EventType "team-tourn"]
[EventCountry "GER"]
[SourceTitle "playchess.com"]
[Source "ChessBase"]
[SourceQuality "1"]
[TimeControl "40/5400+30:1800+30"]

{[%evp 9,37,23,21,20,20,16,16,20,15,14,17,14,16,8,12,10,10,14,22,13,13,0,0,-10,0,-18,-10,-16,-15,-14]} 1. d4 {[%emt 0:00:04]} d5 {[%emt 0:00:21]} 2. c4 {[%emt 0:00:56]} e6 {[%emt 0:00:34]} 3. Nf3 {[%emt 0:00:23]} a6 {[%emt 0:01:02]} 4. cxd5 {[%emt 0:00:52]} exd5 {[%emt 0:00:12]} 5. Nc3 {[%emt 0:00:27]} Be7 {[%emt 0:01:06]} 6. Bf4 {[%emt 0:04:26]} Nf6 {[%emt 0:01:14][%cal Bg8f6,Bf6h5,Bh5g7][%mdl 32]} 7. e3 {[%emt 0:04:11]} Nh5 {[%emt 0:03:36]} 8. Be5 {[%emt 0:01:18]} O-O {[%emt 0:01:19]} 9. h3 {[%emt 0:01:24]} g6 {[%emt 0:04:26]} 10. Be2 {[%emt 0:07:49]} c6 {[%emt 0:01:38]} 11. O-O {[%emt 0:01:41]} Nd7 {[%emt 0:00:45][%cal Bb8d7,Bd7f6,Bf6e4][%mdl 32]} 12. Bh2 {[%emt 0:00:37]} Ng7 {[%emt 0:06:35]} 13. Rc1 {[%emt 0:06:04]} Nf6 {[%emt 0:05:08]} 14. Ne5 {[%emt 0:13:37]} Bd6 {[%emt 0:02:28]} 15. Qb3 {[%emt 0:02:33]} Qe7 {[%emt 0:05:34]} 16. Bf3 {[%emt 0:07:02]} Be6 {[%emt 0:31:49]} 17. Nd3 {[%emt 0:15:58]} Bxh2+ {[%emt 0:08:14]} 18. Kxh2 {[%emt 0:00:06] [#]} Ne4 $1 {[%emt 0:09:14]} 19. Qc2 {[%emt 0:02:26] Against Nd2} 1/2-1/2

[Event "2nd Bundesliga Nord 2024-25"]
[Site "Germany"]
[Date "2024.12.01"]
[Round "3.13"]
[White "Korotkjevich, Stanislav"]
[Black "Van Delft, Merijn"]
[Result "1/2-1/2"]
[Annotator "TA"]
[ECO "A48"]
[WhiteElo "2360"]
[BlackElo "2359"]
[PlyCount "26"]
[EventDate "2024.11.29"]
[EventType "team-tourn"]
[EventCountry "GER"]
[SourceTitle "playchess.com"]
[Source "ChessBase"]
[SourceQuality "1"]
[TimeControl "40/5400+30:1800+30"]

{[%evp 10,26,0,0,17,27,7,10,7,-38,-12,-8,30,-28,4,-12,-8,-13,0]} 1. d4 {[%emt 0:00:09]} Nf6 {[%emt 0:00:29]} 2. Nf3 {[%emt 0:00:07]} g6 {[%emt 0:00:11]} 3. Bg5 {[%emt 0:00:23]} Bg7 {[%emt 0:00:34]} 4. e3 {[%emt 0:00:25]} O-O {[%emt 0:01:28]} 5. Be2 {[%emt 0:01:04]} c5 {[%emt 0:11:30]} 6. c3 {[%emt 0:04:45]} Qb6 {[%emt 0:09:57]} 7. Qb3 {[%emt 0:03:31]} Qc7 {[%emt 0:01:34]} 8. Nbd2 {[%emt 0:01:34]} d6 {[%emt 0:00:55]} 9. h4 {[%emt 0:10:53]} Be6 {[%emt 0:04:23]} 10. Qc2 {[%emt 0:03:55]} h5 {[%emt 0:12:19]} 11. Bf4 {[%emt 0:06:04]} (11. dxc5 $142 Qxc5 12. Nd4) 11... Bg4 {[%emt 0:08:49]} 12. Bc4 {[%emt 0:01:33]} cxd4 {[%emt 0:07:48]} 13. cxd4 {[%emt 0:04:50][%cal Oc4f7] Strongly threatening Bxf7+!.} Be6 {[%emt 0:05:07]} 1/2-1/2